fUST/lending_fUST_20250210
["ID","MTS","AMOUNT","RATE_DAILY","PERIOD"]
[352499209,1739139041293,-1288.92,0.00011095,2]
[352499211,1739139041303,-500.0,0.00011095,2]
[352499213,1739139041312,-1011.88,0.00011095,2]
[352499215,1739139041321,-500.0,0.00011095,2]
[352499217,1739139041330,-592.48,0.00011095,2]
[352499219,1739139041339,-481.83601127,0.00011095,2]
[352499221,1739139041348,-11049.1,0.00011095,2]
[352499223,1739139041357,-500.0,0.00011095,2]
[352499225,1739139041367,-342.31629465,0.00011095,2]
[352499227,1739139041376,-3548.82,0.00011095,2]
[352499229,1739139041385,-500.0,0.00011095,2]
[352499231,1739139041395,-500.0,0.00011095,2]
[352499233,1739139041403,-500.0,0.00011095,2]
[352499235,1739139041413,-502.39802918,0.00011095,2]
[352499237,1739139041422,-8232.14,0.00011095,2]
[352499239,1739139041432,-3391.52,0.00011095,2]
[352499241,1739139041441,-360.78976,0.00011095,2]
[352499243,1739139041451,-383.88723698,0.00011095,2]
[352499245,1739139041460,-1749.51,0.00011095,2]
[352499247,1739139041472,-1830.63,0.00011095,2]
[352499249,1739139041481,-500.0,0.00011095,2]
[352499251,1739139041491,-238.56,0.00011095,2]
[352499253,1739139041500,-500.0,0.00011095,2]
[352499255,1739139041511,-3346.8,0.00011095,2]
[352499257,1739139041520,-224.24076151,0.00011095,2]
[352499259,1739139041529,-500.0,0.00011095,2]
[352499261,1739139041540,-324.26841379,0.00011095,2]
[352499263,1739139041549,-395.26073589,0.00011095,2]
[352499265,1739139041559,-500.0,0.00011095,2]
[352499267,1739139041568,-500.0,0.00011095,2]
[352499269,1739139041578,-500.0,0.00011095,2]
[352499271,1739139041587,-500.0,0.00011095,2]
[352499273,1739139041596,-920.44,0.00011095,2]
[352499275,1739139041606,-500.0,0.00011095,2]
[352499277,1739139041615,-946.85,0.00011095,2]
[352499279,1739139041624,-500.0,0.00011095,2]
[352499281,1739139041633,-500.0,0.00011095,2]
[352499283,1739139041642,-500.0,0.00011095,2]
[352499285,1739139041651,-263.59053552,0.00011095,2]
[352499287,1739139041660,-451.29196504,0.00011095,2]
[352499289,1739139041669,-500.0,0.00011095,2]
[352499291,1739139041678,-500.0,0.00011095,2]
[352499293,1739139041687,-500.0,0.00011095,2]
[352499294,1739139041696,-500.0,0.00011095,2]
[352499296,1739139041706,-500.0,0.00011095,2]
[352499298,1739139041715,-500.0,0.00011095,2]
[352499301,1739139041724,-500.0,0.00011095,2]
[352499303,1739139041735,-582.14209373,0.00011095,2]
[352499305,1739139041744,-500.0,0.00011095,2]
[352499307,1739139041754,-1102.24,0.00011095,2]
[352499309,1739139041764,-500.0,0.00011095,2]
[352499311,1739139041774,-500.0,0.00011095,2]
[352499313,1739139041788,-500.0,0.00011095,2]
[352499315,1739139041797,-500.0,0.00011095,2]
[352499317,1739139041807,-500.0,0.00011095,2]
[352499319,1739139041816,-500.0,0.00011095,2]
[352499321,1739139041825,-151.0,0.000111,2]
[352499323,1739139041835,-500.0,0.00011232,2]
[352499325,1739139041844,-500.0,0.00011232,2]
[352499327,1739139041853,-500.0,0.00011232,2]
[352499329,1739139041863,-500.0,0.00011232,2]
[352499331,1739139041872,-500.0,0.00011232,2]
[352499333,1739139041881,-500.0,0.00011232,2]
[352499335,1739139041890,-500.0,0.00011232,2]
[352499337,1739139041900,-500.0,0.00011232,2]
[352499339,1739139041909,-332.57138369,0.00011232,2]
[352499341,1739139041919,-500.0,0.00011232,2]
[352499343,1739139041928,-1090.35,0.00011232,2]
[352499345,1739139041939,-500.0,0.00011232,2]
[352499347,1739139041948,-500.0,0.00011232,2]
[352499349,1739139041958,-500.0,0.00011232,2]
[352499351,1739139041967,-500.0,0.00011232,2]
[352499353,1739139041976,-500.0,0.00011232,2]
[352499355,1739139041985,-526.80785495,0.00011232,2]
[352499357,1739139041994,-271.69627206,0.00011232,2]
[352499359,1739139042005,-500.0,0.00011232,2]
[352499361,1739139042014,-500.0,0.00011232,2]
[352499363,1739139042024,-509.85927801,0.00011232,2]
[352499365,1739139042033,-472.56425015,0.00011232,2]
[352499367,1739139042043,-500.0,0.00011232,2]
[352499369,1739139042051,-500.0,0.00011232,2]
[352499371,1739139042061,-500.0,0.00011232,2]
[352499373,1739139042070,-1776.74,0.00011232,2]
[352499375,1739139042079,-500.0,0.00011232,2]
[352499377,1739139042090,-500.0,0.00011232,2]
[352499379,1739139042099,-505.7,0.00011232,2]
[352499381,1739139042109,-500.0,0.00011232,2]
[352499383,1739139042118,-500.0,0.00011232,2]
[352499385,1739139042127,-256.48297543,0.00011232,2]
[352499387,1739139042136,-500.0,0.00011232,2]
[352499389,1739139042145,-500.0,0.00011232,2]
[352499391,1739139042155,-500.0,0.00011232,2]
[352499393,1739139042164,-500.0,0.00011232,2]
[352499395,1739139042173,-500.0,0.00011232,2]
[352499397,1739139042182,-578.34055382,0.00011232,2]
[352499399,1739139042192,-500.0,0.00011232,2]
[352499401,1739139042201,-500.0,0.00011232,2]
[352499403,1739139042210,-500.0,0.00011232,2]
[352499405,1739139042219,-502.93377039,0.00011232,2]
[352499407,1739139042229,-2535.49,0.00011232,2]
[352499409,1739139042238,-500.0,0.00011232,2]
[352499411,1739139042247,-500.0,0.00011232,2]
[352499413,1739139042258,-500.0,0.00011232,2]
[352499415,1739139042267,-500.0,0.00011232,2]
[352499417,1739139042276,-502.725926,0.00011232,2]
[352499419,1739139042286,-520.28,0.00011232,2]
[352499421,1739139042296,-454.16653831,0.00011232,2]
[352499423,1739139042305,-376.02754814,0.00011232,2]
[352499425,1739139042315,-500.0,0.00011232,2]
[352499427,1739139042324,-1288.92,0.00011232,2]
[352499429,1739139042334,-500.0,0.00011232,2]
[352499431,1739139042343,-1011.88,0.00011232,2]
[352499433,1739139042352,-500.0,0.00011232,2]
[352499448,1739139042486,-592.48,0.00011232,2]
[352499450,1739139042497,-11049.1,0.00011232,2]
[352499452,1739139042511,-500.0,0.00011232,2]
[352499454,1739139042520,-3548.82,0.00011232,2]
[352499456,1739139042529,-500.0,0.00011232,2]
[352499458,1739139042539,-500.0,0.00011232,2]
[352499460,1739139042548,-500.0,0.00011232,2]
[352499462,1739139042558,-8232.14,0.00011232,2]
[352499464,1739139042567,-3391.52,0.00011232,2]
[352499466,1739139042576,-1749.51,0.00011232,2]
[352499468,1739139042585,-1830.63,0.00011232,2]
[352499470,1739139042595,-500.0,0.00011232,2]
[352499472,1739139042604,-500.0,0.00011232,2]
[352499474,1739139042614,-3346.8,0.00011232,2]
[352499476,1739139042623,-500.0,0.00011232,2]
[352499478,1739139042633,-500.0,0.00011232,2]
[352499480,1739139042642,-500.0,0.00011232,2]
[352499482,1739139042651,-500.0,0.00011232,2]
[352499484,1739139042661,-171.5536414,0.00011232,2]
[352499486,1739139042670,-920.44,0.00011232,2]
[352499488,1739139042679,-500.0,0.00011232,2]
[352499490,1739139042688,-946.85,0.00011232,2]
[352499492,1739139042697,-500.0,0.00011232,2]
[352499494,1739139042706,-500.0,0.00011232,2]
[352499496,1739139042716,-500.0,0.00011232,2]
[352499498,1739139042725,-500.0,0.00011232,2]
[352499500,1739139042734,-387.74314013,0.00011232,2]
[352499502,1739139042743,-548.98126301,0.00011232,2]
[352499504,1739139042754,-500.0,0.00011232,2]
[352499506,1739139042765,-500.0,0.00011232,2]
[352499508,1739139042774,-491.1336781,0.00011232,2]
[352499511,1739139042783,-527.5475912,0.00011232,2]
[352499512,1739139042792,-500.0,0.00011232,2]
[352499515,1739139042802,-1102.24,0.00011232,2]
[352499517,1739139042812,-500.0,0.00011232,2]
[352499519,1739139042822,-316.19996893,0.00011232,2]
[352499521,1739139042830,-500.0,0.00011232,2]
[352499523,1739139042841,-500.0,0.00011232,2]
[352499525,1739139042850,-500.0,0.00011232,2]
[352499527,1739139042860,-500.0,0.00011232,2]
[352499529,1739139042869,-151.0,0.000113,2]
[352499531,1739139042878,-500.0,0.00011369,2]
[352499533,1739139042888,-207.70306408,0.00011369,2]
[352499535,1739139042897,-500.0,0.00011369,2]
[352499537,1739139042907,-500.0,0.00011369,2]
[352499539,1739139042916,-501.8833317,0.00011369,2]
[352499541,1739139042926,-500.0,0.00011369,2]
[352499543,1739139042935,-500.0,0.00011369,2]
[352499545,1739139042944,-500.0,0.00011369,2]
[352499547,1739139042954,-500.0,0.00011369,2]
[352499549,1739139042963,-1090.35,0.00011369,2]
[352499551,1739139042973,-500.0,0.00011369,2]
[352499553,1739139042983,-500.0,0.00011369,2]
[352499555,1739139042993,-500.0,0.00011369,2]
[352499557,1739139043005,-234.28561491,0.00011369,2]
[352499559,1739139043015,-500.0,0.00011369,2]
[352499560,1739139043027,-500.0,0.00011369,2]
[352499561,1739139043036,-504.38097172,0.00011369,2]
[352499562,1739139043046,-500.0,0.00011369,2]
[352499563,1739139043056,-500.0,0.00011369,2]
[352499564,1739139043066,-500.0,0.00011369,2]
[352499565,1739139043076,-1776.74,0.00011369,2]
[352499566,1739139043087,-500.0,0.00011369,2]
[352499567,1739139043097,-605.36,0.00011369,2]
[352499568,1739139043107,-505.7,0.00011369,2]
[352499569,1739139043117,-500.0,0.00011369,2]
[352499570,1739139043126,-500.0,0.00011369,2]
[352499571,1739139043136,-627.68805335,0.00011369,2]
[352499572,1739139043145,-500.0,0.00011369,2]
[352499573,1739139043155,-500.0,0.00011369,2]
[352499575,1739139043164,-500.0,0.00011369,2]
[352499577,1739139043173,-500.0,0.00011369,2]
[352499579,1739139043184,-500.0,0.00011369,2]
[352499581,1739139043194,-500.0,0.00011369,2]
[352499583,1739139043203,-2535.49,0.00011369,2]
[352499584,1739139043212,-500.0,0.00011369,2]
[352499587,1739139043222,-500.0,0.00011369,2]
[352499588,1739139043231,-500.0,0.00011369,2]
[352499591,1739139043241,-500.0,0.00011369,2]
[352499593,1739139043251,-520.28,0.00011369,2]
[352499594,1739139043263,-500.0,0.00011369,2]
[352499596,1739139043275,-1288.92,0.00011369,2]
[352499600,1739139043285,-500.0,0.00011369,2]
[352499603,1739139043294,-1011.88,0.00011369,2]
[352499605,1739139043303,-500.0,0.00011369,2]
[352499610,1739139043312,-592.48,0.00011369,2]
[352499612,1739139043321,-11049.1,0.00011369,2]
[352499615,1739139043330,-500.0,0.00011369,2]
[352499617,1739139043340,-3548.82,0.00011369,2]
[352499621,1739139043349,-500.0,0.00011369,2]
[352499623,1739139043359,-500.0,0.00011369,2]
[352499627,1739139043369,-500.0,0.00011369,2]
[352499629,1739139043378,-8232.14,0.00011369,2]
[352499633,1739139043388,-3391.52,0.00011369,2]
[352499635,1739139043398,-1749.51,0.00011369,2]
[352499638,1739139043407,-1830.63,0.00011369,2]
[352499640,1739139043417,-500.0,0.00011369,2]
[352499643,1739139043427,-500.0,0.00011369,2]
[352499645,1739139043436,-3346.8,0.00011369,2]
[352499649,1739139043445,-500.0,0.00011369,2]
[352499652,1739139043459,-506.88345466,0.00011369,2]
[352499656,1739139043468,-500.0,0.00011369,2]
[352499659,1739139043477,-500.0,0.00011369,2]
[352499661,1739139043487,-920.44,0.00011369,2]
[352499665,1739139043496,-500.0,0.00011369,2]
[352499667,1739139043509,-946.85,0.00011369,2]
[352499669,1739139043518,-500.0,0.00011369,2]
[352499672,1739139043528,-500.0,0.00011369,2]
[352499676,1739139043538,-500.0,0.00011369,2]
[352499678,1739139043548,-500.0,0.00011369,2]
[352499681,1739139043558,-331.74239561,0.00011369,2]
[352499684,1739139043567,-500.0,0.00011369,2]
[352499686,1739139043577,-500.0,0.00011369,2]
[352499688,1739139043586,-1102.24,0.00011369,2]
[352499690,1739139043596,-216.61658649,0.00011369,2]
[352499692,1739139043605,-427.92428206,0.00011369,2]
[352499695,1739139043614,-500.0,0.00011369,2]
[352499697,1739139043624,-500.0,0.00011369,2]
[352499700,1739139043634,-500.0,0.00011369,2]
[352499703,1739139043643,-151.0,0.000114,2]
[352499706,1739139043652,-369.65843416,0.00011421,2]
[352499709,1739139043662,-800.0,0.00011438,2]
[352499712,1739139043672,-500.0,0.00011506,2]
[352499715,1739139043681,-500.0,0.00011506,2]
[352499718,1739139043691,-626.94297897,0.00011506,2]
[352499721,1739139043700,-500.0,0.00011506,2]
[352499723,1739139043709,-500.0,0.00011506,2]
[352499726,1739139043719,-503.72873296,0.00011506,2]
[352499728,1739139043729,-500.0,0.00011506,2]
[352499731,1739139043739,-1090.35,0.00011506,2]
[352499734,1739139043749,-500.0,0.00011506,2]
[352499737,1739139043763,-503.37962008,0.00011506,2]
[352499740,1739139043773,-500.0,0.00011506,2]
[352499743,1739139043782,-500.0,0.00011506,2]
[352499746,1739139043791,-500.0,0.00011506,2]
[352499749,1739139043800,-500.0,0.00011506,2]
[352499752,1739139043810,-500.0,0.00011506,2]
[352499755,1739139043819,-500.0,0.00011506,2]
[352499759,1739139043831,-1776.74,0.00011506,2]
[352499762,1739139043840,-500.0,0.00011506,2]
[352499765,1739139043850,-505.7,0.00011506,2]
[352499768,1739139043860,-500.0,0.00011506,2]
[352499771,1739139043870,-500.0,0.00011506,2]
[352499774,1739139043879,-500.0,0.00011506,2]
[352499777,1739139043889,-500.0,0.00011506,2]
[352499781,1739139043899,-500.0,0.00011506,2]
[352499784,1739139043910,-500.0,0.00011506,2]
[352499786,1739139043920,-194.84084991,0.00011506,2]
[352499789,1739139043930,-500.0,0.00011506,2]
[352499793,1739139043939,-2535.49,0.00011506,2]
[352499796,1739139043948,-500.0,0.00011506,2]
[352499797,1739139043957,-500.0,0.00011506,2]
[352499801,1739139043967,-579.7583026,0.00011506,2]
[352499803,1739139043976,-500.0,0.00011506,2]
[352499806,1739139043986,-520.28,0.00011506,2]
[352499809,1739139043995,-500.0,0.00011506,2]
[352499812,1739139044007,-1288.92,0.00011506,2]
[352499815,1739139044018,-500.0,0.00011506,2]
[352499818,1739139044027,-1011.88,0.00011506,2]
[352499820,1739139044037,-500.0,0.00011506,2]
[352499823,1739139044046,-592.48,0.00011506,2]
[352499826,1739139044056,-11049.1,0.00011506,2]
[352499829,1739139044066,-529.01767484,0.00011506,2]
[352499832,1739139044076,-3548.82,0.00011506,2]
[352499835,1739139044085,-500.0,0.00011506,2]
[352499838,1739139044094,-500.0,0.00011506,2]
[352499841,1739139044104,-209.52180457,0.00011506,2]
[352499844,1739139044113,-8232.14,0.00011506,2]
[352499847,1739139044122,-3391.52,0.00011506,2]
[352499850,1739139044131,-1749.51,0.00011506,2]
[352499853,1739139044140,-1830.63,0.00011506,2]
[352499855,1739139044149,-500.0,0.00011506,2]
[352499858,1739139044159,-500.0,0.00011506,2]
[352499861,1739139044168,-3346.8,0.00011506,2]
[352499864,1739139044177,-341.17321266,0.00011506,2]
[352499867,1739139044187,-500.0,0.00011506,2]
[352499870,1739139044196,-500.0,0.00011506,2]
[352499873,1739139044206,-920.44,0.00011506,2]
[352499876,1739139044215,-500.0,0.00011506,2]
[352499879,1739139044224,-946.85,0.00011506,2]
[352499882,1739139044234,-500.0,0.00011506,2]
[352499885,1739139044243,-500.0,0.00011506,2]
[352499888,1739139044252,-500.0,0.00011506,2]
[352499890,1739139044264,-500.0,0.00011506,2]
[352499892,1739139044273,-500.0,0.00011506,2]
[352499895,1739139044282,-500.0,0.00011506,2]
[352499898,1739139044292,-1102.24,0.00011506,2]
[352499901,1739139044301,-500.0,0.00011506,2]
[352499904,1739139044311,-591.73288228,0.00011506,2]
[352499907,1739139044321,-500.0,0.00011506,2]
[352499910,1739139044329,-6616.65682713,0.0001151,4]
[352499913,1739139044340,-500.0,0.00011521,2]
[352499916,1739139044349,-501.94270361,0.00011521,2]
[352499919,1739139044358,-500.0,0.00011523,2]
[352499922,1739139044368,-500.0,0.00011538,2]
[352499925,1739139044377,-151.0,0.000116,2]
[352499927,1739139044386,-151.0,0.000116,2]
[352499930,1739139044396,-500.0,0.00011643,2]
[352499932,1739139044405,-500.0,0.00011643,2]
[352499935,1739139044414,-500.0,0.00011643,2]
[352499938,1739139044423,-500.0,0.00011643,2]
[352499941,1739139044432,-500.0,0.00011643,2]
[352499944,1739139044442,-1090.35,0.00011643,2]
[352499947,1739139044451,-562.30611129,0.00011643,2]
[352499950,1739139044461,-500.0,0.00011643,2]
[352499953,1739139044472,-281.72,0.00011643,2]
[352499956,1739139044482,-500.0,0.00011643,2]
[352499958,1739139044490,-500.0,0.00011643,2]
[352499961,1739139044500,-500.0,0.00011643,2]
[352499964,1739139044514,-500.0,0.00011643,2]
[352499967,1739139044523,-1776.74,0.00011643,2]
[352499970,1739139044534,-562.36324636,0.00011643,2]
[352499973,1739139044544,-505.7,0.00011643,2]
[352499976,1739139044554,-500.0,0.00011643,2]
[352499979,1739139044563,-500.0,0.00011643,2]
[352499982,1739139044573,-265.10554976,0.00011643,2]
[352499985,1739139044582,-500.0,0.00011643,2]
[352499988,1739139044591,-500.0,0.00011643,2]
[352499991,1739139044600,-500.0,0.00011643,2]
[352499994,1739139044609,-500.0,0.00011643,2]
[352499997,1739139044618,-2535.49,0.00011643,2]
[352500000,1739139044628,-203.26517103,0.00011643,2]
[352500003,1739139044637,-500.0,0.00011643,2]
[352500006,1739139044647,-500.0,0.00011643,2]
[352500009,1739139044656,-520.28,0.00011643,2]
[352500012,1739139044665,-500.0,0.00011643,2]
[352500015,1739139044675,-1288.92,0.00011643,2]
[352500018,1739139044685,-500.0,0.00011643,2]
[352500021,1739139044694,-1011.88,0.00011643,2]
[352500024,1739139044704,-516.6680374,0.00011643,2]
[352500027,1739139044713,-592.48,0.00011643,2]
[352500030,1739139044723,-11049.1,0.00011643,2]
[352500033,1739139044732,-3548.82,0.00011643,2]
[352500036,1739139044741,-500.0,0.00011643,2]
[352500038,1739139044750,-500.0,0.00011643,2]
[352500041,1739139044762,-8232.14,0.00011643,2]
[352500043,1739139044771,-3391.52,0.00011643,2]
[352500047,1739139044781,-1749.51,0.00011643,2]
[352500049,1739139044790,-1830.63,0.00011643,2]
[352500052,1739139044799,-500.0,0.00011643,2]
[352500055,1739139044809,-500.0,0.00011643,2]
[352500058,1739139044818,-3346.8,0.00011643,2]
[352500060,1739139044827,-500.0,0.00011643,2]
[352500063,1739139044835,-212.91478696,0.00011643,2]
[352500065,1739139044845,-920.44,0.00011643,2]
[352500067,1739139044854,-500.0,0.00011643,2]
[352500069,1739139044863,-500.0,0.00011643,2]
[352500071,1739139044873,-946.85,0.00011643,2]
[352500073,1739139044882,-500.0,0.00011643,2]
[352500075,1739139044893,-500.0,0.00011643,2]
[352500077,1739139044902,-500.0,0.00011643,2]
[352500079,1739139044911,-500.0,0.00011643,2]
[352500081,1739139044921,-500.0,0.00011643,2]
[352500083,1739139044930,-1102.24,0.00011643,2]
[352500085,1739139044939,-500.0,0.00011643,2]
[352500087,1739139044949,-500.0,0.00011643,2]
[352500089,1739139044958,-500.0,0.0001178,2]
[352500091,1739139044967,-500.0,0.0001178,2]
[352500092,1739139044976,-500.0,0.0001178,2]
[352500094,1739139044986,-501.8383061,0.0001178,2]
[352500096,1739139044995,-500.0,0.0001178,2]
[352500098,1739139045007,-1090.35,0.0001178,2]
[352500100,1739139045016,-500.0,0.0001178,2]
[352500102,1739139045026,-154.54,0.0001178,2]
[352500104,1739139045036,-500.0,0.0001178,2]
[352500106,1739139045045,-500.0,0.0001178,2]
[352500108,1739139045054,-500.0,0.0001178,2]
[352500110,1739139045063,-1776.74,0.0001178,2]
[352500112,1739139045073,-505.7,0.0001178,2]
[352500114,1739139045082,-585.19438347,0.0001178,2]
[352500116,1739139045091,-500.0,0.0001178,2]
[352500118,1739139045100,-500.0,0.0001178,2]
[352500120,1739139045109,-500.0,0.0001178,2]
[352500122,1739139045119,-500.0,0.0001178,2]
[352500123,1739139045128,-500.0,0.0001178,2]
[352500125,1739139045138,-2535.49,0.0001178,2]
[352500127,1739139045149,-500.0,0.0001178,2]
[352500129,1739139045159,-500.0,0.0001178,2]
[352500131,1739139045168,-520.28,0.0001178,2]
[352500133,1739139045178,-500.0,0.0001178,2]
[352500135,1739139045188,-1288.92,0.0001178,2]
[352500137,1739139045198,-500.0,0.0001178,2]
[352500139,1739139045207,-1011.88,0.0001178,2]
[352500141,1739139045216,-592.48,0.0001178,2]
[352500143,1739139045226,-11049.1,0.0001178,2]
[352500145,1739139045235,-3548.82,0.0001178,2]
[352500147,1739139045244,-500.0,0.0001178,2]
[352500148,1739139045256,-500.0,0.0001178,2]
[352500151,1739139045268,-8232.14,0.0001178,2]
[352500153,1739139045278,-3391.52,0.0001178,2]
[352500154,1739139045288,-1749.51,0.0001178,2]
[352500156,1739139045298,-1830.63,0.0001178,2]
[352500158,1739139045307,-500.0,0.0001178,2]
[352500160,1739139045316,-500.0,0.0001178,2]
[352500162,1739139045326,-3346.8,0.0001178,2]
[352500164,1739139045335,-503.58731381,0.0001178,2]
[352500166,1739139045345,-920.44,0.0001178,2]
[352500168,1739139045357,-532.71128124,0.0001178,2]
[352500170,1739139045366,-946.85,0.0001178,2]
[352500172,1739139045376,-500.0,0.0001178,2]
[352500174,1739139045386,-500.0,0.0001178,2]
[352500176,1739139045396,-500.0,0.0001178,2]
[352500178,1739139045406,-500.0,0.0001178,2]
[352500180,1739139045415,-500.0,0.0001178,2]
[352500182,1739139045425,-1102.24,0.0001178,2]
[352500184,1739139045434,-500.0,0.0001178,2]
[352500186,1739139045443,-500.0,0.0001178,2]
[352500188,1739139045453,-151.0,0.000118,2]
[352500191,1739139045466,-151.0,0.000119,2]
[352500194,1739139045487,-500.0,0.00011917,2]
[352500196,1739139045498,-500.0,0.00011917,2]
[352500198,1739139045513,-357.12185629,0.00011917,2]
[352500200,1739139045523,-500.0,0.00011917,2]
[352500202,1739139045534,-1090.35,0.00011917,2]
[352500204,1739139045545,-500.0,0.00011917,2]
[352500206,1739139045554,-500.0,0.00011917,2]
[352500208,1739139045564,-500.0,0.00011917,2]
[352500210,1739139045573,-500.0,0.00011917,2]
[352500212,1739139045583,-1776.74,0.00011917,2]
[352500214,1739139045593,-505.7,0.00011917,2]
[352500216,1739139045604,-500.0,0.00011917,2]
[352500218,1739139045614,-500.0,0.00011917,2]
[352500220,1739139045624,-500.0,0.00011917,2]
[352500222,1739139045633,-500.0,0.00011917,2]
[352500224,1739139045644,-500.0,0.00011917,2]
[352500226,1739139045654,-2535.49,0.00011917,2]
[352500228,1739139045664,-156.78076958,0.00011917,2]
[352500230,1739139045674,-500.0,0.00011917,2]
[352500232,1739139045684,-520.28,0.00011917,2]
[352500234,1739139045694,-500.0,0.00011917,2]
[352500236,1739139045704,-1288.92,0.00011917,2]
[352500238,1739139045714,-500.0,0.00011917,2]
[352500240,1739139045723,-1011.88,0.00011917,2]
[352500242,1739139045733,-592.48,0.00011917,2]
[352500244,1739139045743,-11049.1,0.00011917,2]
[352500246,1739139045752,-3548.82,0.00011917,2]
[352500248,1739139045767,-500.0,0.00011917,2]
[352500250,1739139045776,-500.0,0.00011917,2]
[352500252,1739139045785,-8232.14,0.00011917,2]
[352500254,1739139045795,-3391.52,0.00011917,2]
[352500256,1739139045804,-1749.51,0.00011917,2]
[352500258,1739139045814,-1830.63,0.00011917,2]
[352500260,1739139045824,-504.44851662,0.00011917,2]
[352500262,1739139045833,-500.0,0.00011917,2]
[352500264,1739139045843,-3346.8,0.00011917,2]
[352500266,1739139045853,-920.44,0.00011917,2]
[352500268,1739139045862,-946.85,0.00011917,2]
[352500270,1739139045872,-500.0,0.00011917,2]
[352500272,1739139045881,-500.0,0.00011917,2]
[352500274,1739139045891,-500.0,0.00011917,2]
[352500276,1739139045901,-500.0,0.00011917,2]
[352500278,1739139045910,-500.0,0.00011917,2]
[352500280,1739139045922,-1102.24,0.00011917,2]
[352500282,1739139045932,-500.0,0.00011917,2]
[352500284,1739139045943,-500.0,0.00011917,2]
[352500289,1739139046112,-420.0,0.00012041,2]
[352500290,1739139046122,-500.0,0.00012054,2]
[352500291,1739139046132,-500.0,0.00012054,2]
[352500292,1739139046142,-500.0,0.00012054,2]
[352500294,1739139046151,-1090.35,0.00012054,2]
[352500296,1739139046161,-500.0,0.00012054,2]
[352500298,1739139046170,-500.0,0.00012054,2]
[352500300,1739139046180,-516.72408088,0.00012054,2]
[352500302,1739139046189,-500.0,0.00012054,2]
[352500304,1739139046199,-1776.74,0.00012054,2]
[352500306,1739139046208,-505.7,0.00012054,2]
[352500309,1739139046217,-500.0,0.00012054,2]
[352500312,1739139046226,-500.0,0.00012054,2]
[352500315,1739139046236,-500.0,0.00012054,2]
[352500318,1739139046246,-500.0,0.00012054,2]
[352500320,1739139046257,-500.0,0.00012054,2]
[352500323,1739139046267,-2535.49,0.00012054,2]
[352500326,1739139046278,-500.0,0.00012054,2]
[352500329,1739139046288,-520.28,0.00012054,2]
[352500331,1739139046297,-500.0,0.00012054,2]
[352500333,1739139046307,-1288.92,0.00012054,2]
[352500336,1739139046318,-500.0,0.00012054,2]
[352500339,1739139046327,-1011.88,0.00012054,2]
[352500342,1739139046337,-592.48,0.00012054,2]
[352500345,1739139046347,-11049.1,0.00012054,2]
[352500348,1739139046356,-3548.82,0.00012054,2]
[352500351,1739139046366,-500.0,0.00012054,2]
[352500354,1739139046376,-500.0,0.00012054,2]
[352500357,1739139046386,-8232.14,0.00012054,2]
[352500359,1739139046396,-3391.52,0.00012054,2]
[352500362,1739139046405,-1749.51,0.00012054,2]
[352500365,1739139046415,-1830.63,0.00012054,2]